Cogmind - Beta 15 @@@ ROGUE MODE // 2025.05.26 @ 12:53:16 Player: Symetrie Result: Destroyed by G-47 Trooper with Particle Gun Performance ------------- Evolutions (2) 1000 Regions Visited (5) 1000 Robots Destroyed (36) 180 Value Destroyed (1034) 1034 Prototype IDs (5) 100 Alien Tech Used (0) 0 Bonus (200) 200 TOTAL SCORE: 3514 Bonus ------- Entered Garrisons 200 Cogmind --------- Core Integrity 0/550 Matter 287/300 Energy 100/100 System Corruption 0% Temperature Cool (9) Movement Core (100) Ox1 Location -8/Garrison Parts ------- > --- POWER (1) -------- (None) > --- PROPULSION (4) --- (None) > --- UTILITY (4) ------ Small Storage Unit Advanced Weight Redist. System > --- WEAPON (2) ------- (None) > --- INVENTORY (8) ---- Improved Sensor Array Shock Rifle Ion Cannon Ion Cannon Ion Cannon Mining Laser Peak State ------------ > --- POWER ------------ Improved Ion Engine > --- PROPULSION ------- Aluminum Leg Aluminum Leg Aluminum Leg Improved Aluminum Leg > --- UTILITY ---------- Improved Heat Sink Small Storage Unit Advanced Weight Redist. System Experimental Sensor Array > --- WEAPON ----------- Ion Cannon Ion Cannon > --- INVENTORY -------- Improved Ion Engine Aluminum Leg Improved Sensor Array Shock Rifle Ion Cannon Ion Cannon Rocket Launcher Mining Laser [Rating: 30] Favorites ----------- Power Ion Engine Engine Ion Engine Propulsion Aluminum Leg Leg Aluminum Leg Utility Small Storage Unit Device Improved Heat Sink Storage Small Storage Unit Weapon Light Assault Rifle Energy Gun Improved Medium Laser Energy Cannon Ion Cannon Ballistic Gun Light Assault Rifle Launcher Rocket Launcher Build | -11 -10 -10 -9 -8 -8 ------- Run | Yrd Mat Min Mat Mat Gar Slots Evolved 4 | . . . 2 2 . Power . | . . . . . . Propulsion 2 | . . . 2 . . Utility 2 | . . . . 2 . Weapon . | . . . . . . Parts Attached 30 | 7 1 . 15 1 6 Power 3 | 1 . . 1 . 1 Engine 3 | 1 . . 1 . 1 Core . | . . . . . . Reactor . | . . . . . . Propulsion 13 | 2 . . 7 . 4 Treads . | . . . . . . Leg 13 | 2 . . 7 . 4 Wheel . | . . . . . . Hover . | . . . . . . Flight . | . . . . . . Utility 5 | 1 1 . 2 1 . Device 3 | . . . 2 1 . Storage 2 | 1 1 . . . . Processor . | . . . . . . Hackware . | . . . . . . Protection . | . . . . . . Artifact . | . . . . . . Weapon 9 | 3 . . 5 . 1 Energy Gun 3 | 1 . . 2 . . Energy Cannon 2 | . . . 2 . . Ballistic Gun 3 | 2 . . 1 . . Ballistic Cannon . | . . . . . . Launcher 1 | . . . . . 1 Special Weapon . | . . . . . . Impact Weapon . | . . . . . . Slashing Weapon . | . . . . . . Piercing Weapon . | . . . . . . Special Melee Weapon . | . . . . . . Unidentified Prototypes 1 | . . . 1 . . Parts Lost 10 | . . . . . 10 Power 2 | . . . . . 2 Propulsion 5 | . . . . . 5 Utility 1 | . . . . . 1 Weapon 2 | . . . . . 2 Highest Loss Streak 10 | . . . . . 10 To Critical Strikes . | . . . . . . Average Backups 5 | . 2 4 7 7 7 Power 1 | . 1 1 1 1 . Propulsion . | . . . . 1 . Utility 1 | . . 1 1 . 1 Weapon 2 | . 1 1 3 4 5 Tool/Special . | . . . . . . Unused Backups 10 | . . . 5 . 5 Power 2 | . . . 2 . . Propulsion . | . . . . . . Utility 3 | . . . 2 . 1 Weapon 5 | . . . 1 . 4 Tool/Special . | . . . . . . Average Slot Usage (%) 94 | . 93 100 95 97 83 Engine 11 | . 14 14 11 9 7 Leg 33 | . 28 28 40 36 29 Device 8 | . . . 9 24 22 Storage 17 | . 22 28 12 9 9 Energy Gun 4 | . . . 9 . . Energy Cannon 6 | . . . 8 18 13 Ballistic Gun 11 | . 28 28 3 . . Peak Build Rating 30 | 6 7 8 22 29 30 Average Rating 14 | 4 6 7 17 28 24 On Entrance 11 | . 6 7 8 18 29 Naked Turns . | . . . . . . Heaviest Build 26 | 12 14 14 25 26 26 Greatest Support 49 | 20 20 20 40 49 43 Greatest Overweight (x) 3 | 3 . . . . 1 Average Overweight (x) . | . . . . . . Largest Inventory Capacity 8 | 8 8 8 8 8 8 Average Capacity 7 | 7 8 8 8 8 8 Most Carried 8 | 2 2 5 8 8 8 Average Carried 5 | . 2 4 7 7 7 Final Capacity 8 | 8 8 8 8 8 8 Final Carried 8 | 2 2 5 7 8 6 Class Distribution -------------------- 57% | Mutant 42% | Scavenger-Mutant Dominant Class ---------------- Mutant | -10/Materials Mutant | -10/Mines Scavenger-Mutant | -9/Materials Scavenger-Mutant | -8/Materials Scavenger-Mutant | -8/Garrison Resources | -11 -10 -10 -9 -8 -8 ----------- Run | Yrd Mat Min Mat Mat Gar Matter Collected 614 | 286 . 81 177 10 60 Remotely . | . . . . . . Salvage Created 1487 | 124 . 46 1079 . 238 Parts 76 | 4 . 4 45 . 23 Haulers Intercepted . | . . . . . . Recyclers Shooed . | . . . . . . Parts Field Recycled . | . . . . . . Retrieved Matter . | . . . . . . Parts Self-Destructed . | . . . . . . Prevented . | . . . . . . Kills | -11 -10 -10 -9 -8 -8 ------- Run | Yrd Mat Min Mat Mat Gar Combat Hostiles Destroyed 29 | . . 3 17 . 9 Guns 14 | . . 3 11 . . Cannons 11 | . . . 5 . 6 AOE 3 | . . . . . 3 Classes Destroyed 10 | 2 . 1 6 . 1 Worker 1 | . . . 1 . . Tunneler 1 | 1 . . . . . Recycler 3 | 1 . . 2 . . Operator 1 | . . . 1 . . Watcher 1 | . . . 1 . . Swarmer 8 | . . 3 . . 5 Grunt 11 | . . . 9 . 2 Brawler 1 | . . . 1 . . Duelist 1 | . . . . . 1 Sentry 8 | . . . 7 . 1 Best Kill Streak 6 | 2 . 3 6 . 6 Combat Bots Only 6 | . . 3 5 . 6 Max Kills in Single Turn 3 | 1 . 1 2 . 3 Gunslinging . | . . . . . . Exploded 3 | . . . . . 3 Melee . | . . . . . . Uniques/NPCs Destroyed . | . . . . . . Combat | -11 -10 -10 -9 -8 -8 -------- Run | Yrd Mat Min Mat Mat Gar Hostile Shots Fired 246 | . . 12 63 . 171 Missed 75 | . . 3 23 . 49 Hits 171 | . . 9 40 . 122 Melee 7 | . . . 1 . 6 Projectile 164 | . . 9 39 . 116 Critical Strikes 7 | . . . 3 . 4 Damage Taken 2213 | . . 77 577 . 1559 Core 612 | . . 25 33 . 554 Absorbed by Shields . | . . . . . . Core Remaining (%) 93 | 100 . 90 91 . . Volleys Fired 76 | 8 . 8 44 . 16 Largest 2 | 2 . 2 2 . 2 Hottest 120 | 40 . 40 120 . 120 Shots Fired 149 | 16 . 16 88 . 29 Gun 92 | 16 . 16 60 . . Cannon 54 | . . . 28 . 26 Launcher 3 | . . . . . 3 Special . | . . . . . . Kinetic 42 | 16 . 16 10 . . Thermal 104 | . . . 78 . 26 Explosive 3 | . . . . . 3 Electromagnetic . | . . . . . . Robot Hit Streak 14 | 7 . 3 14 . 11 Robot Miss Streak 5 | 1 . 5 2 . 4 Penetration Max . | . . . . . . Secondary Targets 3 | . . 2 1 . . Max Gunslinging Chain 1 | . . 1 1 . . Shots Hit Robots 100 | 11 . 6 67 . 16 Core Hits 50 | 4 . 4 29 . 13 Critical Kills 1 | . . . 1 . . Critical Parts Destroyed . | . . . . . . Critical Strikes 6 | . . . 6 . . Burn 5 | . . . 5 . . Destroy 1 | . . . 1 . . Melee Attacks . | . . . . . . Impact . | . . . . . . Slashing . | . . . . . . Piercing . | . . . . . . Sneak Attacks . | . . . . . . Combat Hostiles . | . . . . . . Follow-up Attacks . | . . . . . . Damage Inflicted 1928 | 82 . 49 1199 . 598 Guns 839 | 82 . 49 708 . . Cannons 854 | . . . 487 . 367 Explosions 231 | . . . . . 231 Melee . | . . . . . . Ramming 4 | . . . 4 . . Kinetic 197 | 82 . 49 66 . . Thermal 1496 | . . . 1129 . 367 Explosive 231 | . . . . . 231 Electromagnetic . | . . . . . . Impact . | . . . . . . Slashing . | . . . . . . Piercing . | . . . . . . Highest Corruption . | . . . . . . Average Corruption . | . . . . . . Corruption Purged . | . . . . . . Corruption Blocked . | . . . . . . Overload Shots . | . . . . . . Overflow Damage 13 | . . . . . 13 Projectiles . | . . . . . . Explosions 13 | . . . . . 13 Melee . | . . . . . . Knockbacks . | . . . . . . Impact . | . . . . . . Kinetic . | . . . . . . Secondary . | . . . . . . Self-Inflicted Damage 66 | . . . . . 66 Shots 2 | . . . . . 2 Rammed . | . . . . . . Targets Rammed 2 | . . . 2 . . Kicked 2 | . . . 2 . . Crushed . | . . . . . . Highest Temperature 345 | . . . 237 . 345 Average Temperature 81 | . . . 66 . 111 Received Heat Transfer 684 | . . . 216 . 468 Effects 1 | . . . . . 1 Energy Bleed 1 | . . . . . 1 Siege Activations . | . . . . . . Martial Activations . | . . . . . . Shielding Activations . | . . . . . . Robots Disrupted . | . . . . . . Combat Hostiles . | . . . . . . Robots Corrupted . | . . . . . . Combat Hostiles . | . . . . . . Parts Fried . | . . . . . . Impact Corruptions . | . . . . . . Robots Melted 1 | . . . 1 . . Combat Hostiles 1 | . . . 1 . . Parts Melted 14 | . . . 11 . 3 Heat Transferred 3145 | . . . 2553 . 592 Parts Sabotaged . | . . . . . . Parts Stolen . | . . . . . . Parts Stripped . | . . . . . . Power Chain Reactions . | . . . . . . Alert | -11 -10 -10 -9 -8 -8 ------- Run | Yrd Mat Min Mat Mat Gar Maximum Alert Level 1 | . . . 1 . 1 Low Security (%) 86 | 100 100 100 78 100 69 Level 1 13 | . . . 21 . 30 Level 2 . | . . . . . . Level 3 . | . . . . . . Level 4 . | . . . . . . Level 5 . | . . . . . . High Security . | . . . . . . Max Security . | . . . . . . Peak Influence 274 | 5 5 60 246 90 274 Initial 90 | . . 1 1 90 39 Average 78 | . . 9 131 74 135 Influence Increases 891 | 10 5 70 521 . 285 Destroy 0b10 Robot/C 580 | . . 60 340 . 180 Destroy 0b10 Robot/NC 35 | 10 . . 25 . . Destroy Leader 132 | . . 10 102 . 20 Successful Hack 27 | . 5 . 6 . 16 Disable Machine 60 | . . . 30 . 30 Destroy Structure 12 | . . . 3 . 9 Lose Combat Pursuer 45 | . . . 15 . 30 Influence Decreases 667 | 10 . 69 312 155 121 Entered New Map 155 | . . 4 5 125 21 Time Decay 412 | 10 . 65 307 30 . Lost Part 100 | . . . . . 100 Squads Dispatched 1 | . . . 1 . . Investigation 1 | . . . 1 . . Extermination . | . . . . . . Reinforcement . | . . . . . . Assault . | . . . . . . Garrison . | . . . . . . Intercept . | . . . . . . Searches Triggered . | . . . . . . Construction Impeded . | . . . . . . Haulers Reinforced . | . . . . . . Active Scanning Responses . | . . . . . . Cargo Convoy Interrupts . | . . . . . . Stealth | -11 -10 -10 -9 -8 -8 --------- Run | Yrd Mat Min Mat Mat Gar Distress Signals 3 | . . . 3 . . Communications Jammed . | . . . . . . Distress Signals . | . . . . . . Times Spotted 43 | . 2 3 21 . 17 Peak Tracking Total 8 | . 2 3 3 . 8 Tactical Retreats 3 | . . . 1 . 2 Traps | -11 -10 -10 -9 -8 -8 ------- Run | Yrd Mat Min Mat Mat Gar Traps Triggered . | . . . . . . Indirectly . | . . . . . . Trap Hack Attempts . | . . . . . . Triggered . | . . . . . . Disarmed . | . . . . . . Reprogrammed . | . . . . . . Reused . | . . . . . . Traps Extracted . | . . . . . . Installed . | . . . . . . Triggered . | . . . . . . Machines | -11 -10 -10 -9 -8 -8 ---------- Run | Yrd Mat Min Mat Mat Gar Machines Disabled 4 | . . . 2 . 2 Max in Single Turn 2 | . . . 1 . 2 Machines Repaired . | . . . . . . Machines Dismantled . | . . . . . . Machines Sabotaged . | . . . . . . Overloaded Fab Kills . | . . . . . . Hacking | -11 -10 -10 -9 -8 -8 --------- Run | Yrd Mat Min Mat Mat Gar Machines Accessed 9 | . 2 . 4 1 2 Terminals 7 | . 2 . 3 . 2 Fabricators . | . . . . . . Repair Stations . | . . . . . . Recycling Units . | . . . . . . Scanalyzers 1 | . . . 1 . . Garrison Access 1 | . . . . 1 . Total Hacks 19 | . 4 . 12 1 2 Successful 11 | . 3 . 6 1 1 Failed 8 | . 1 . 6 . 1 Catastrophic 3 | . . . 2 . 1 Database Lockouts . | . . . . . . Manual 1 | . . . 1 . . Terminals 16 | . 4 . 10 . 2 Fabricators . | . . . . . . Repair Stations . | . . . . . . Recycling Units . | . . . . . . Scanalyzers 2 | . . . 2 . . Garrison Access 1 | . . . . 1 . Terminal Hacks 8 | . 3 . 4 . 1 Record 4 | . 2 . 2 . . Prototype ID Bank 1 | . . . 1 . . Zone Layout 2 | . 1 . 1 . . Security Stations 1 | . . . . . 1 Fabricator Hacks . | . . . . . . Repair Station Hacks . | . . . . . . Recycling Unit Hacks . | . . . . . . Scanalyzer 2 | . . . 2 . . Insert Component 2 | . . . 2 . . Garrison Access Hacks 1 | . . . . 1 . Unlock Access 1 | . . . . 1 . Unauthorized Hacks . | . . . . . . Terminals . | . . . . . . Fabricators . | . . . . . . Repair Stations . | . . . . . . Recycling Units . | . . . . . . Scanalyzers . | . . . . . . Garrison Access . | . . . . . . Data Cores Recovered 1 | . . . 1 . . Used . | . . . . . . Hacking Detections 5 | . 1 . 3 . 1 Full Trace Events 1 | . . . 1 . . Feedback Events . | . . . . . . Feedback Blocked . | . . . . . . Robot Schematics Acquired . | . . . . . . Robots Built . | . . . . . . Authchips . | . . . . . . Time . | . . . . . . Total Robot Build Rating . | . . . . . . Part Schematics Acquired . | . . . . . . Parts Built . | . . . . . . Authchips . | . . . . . . Time . | . . . . . . Total Part Build Rating . | . . . . . . Parts Repaired . | . . . . . . Time . | . . . . . . Parts Recycled . | . . . . . . Recycled Matter . | . . . . . . Retrieved Matter . | . . . . . . Retrieved Components . | . . . . . . Parts Scanalyzed . | . . . . . . Part Schematics Acquired . | . . . . . . Parts Damaged . | . . . . . . Bothacking | -11 -10 -10 -9 -8 -8 ------------ Run | Yrd Mat Min Mat Mat Gar Used RIF Installer . | . . . . . . Robots Hacked . | . . . . . . Non-combat . | . . . . . . Combat . | . . . . . . Robot Hacks Applied . | . . . . . . Relay Couplers Released . | . . . . . . Fabnet Peak Effective % . | . . . . . . Robots Rewired . | . . . . . . Allies Hacked . | . . . . . . Hacks Repelled . | . . . . . . Allies | -11 -10 -10 -9 -8 -8 -------- Run | Yrd Mat Min Mat Mat Gar Total Allies . | . . . . . . Largest Group . | . . . . . . Highest-Rated Group . | . . . . . . Highest-Rated Ally . | . . . . . . Total Orders . | . . . . . . Ally Attacks . | . . . . . . Total Damage . | . . . . . . Kills . | . . . . . . Allies Corrupted . | . . . . . . Allies Melted . | . . . . . . Intel | -11 -10 -10 -9 -8 -8 ------- Run | Yrd Mat Min Mat Mat Gar Active Infowar (turns) 276 | . . . 221 55 . Sensors 276 | . . . 221 55 . Robot Analysis Total . | . . . . . . Derelict Logs Recovered . | . . . . . . Drone Launches . | . . . . . . Drone Recoveries . | . . . . . . Exploration | -11 -10 -10 -9 -8 -8 ------------- Run | Yrd Mat Min Mat Mat Gar Turns Passed 1834 | 89 212 440 738 79 276 Spaces Moved 1151 | 47 124 327 449 63 141 Core 11 | 11 . . . . . Treads . | . . . . . . Legs 1140 | 36 124 327 449 63 141 Wheels . | . . . . . . Hover . | . . . . . . Flight . | . . . . . . Fastest Speed 50 | 50 120 120 120 120 120 Average Speed 120 | 119 120 120 120 120 121 Slowest Speed 200 | 200 120 120 120 120 190 Overloaded Moves . | . . . . . . Propulsion Burnouts . | . . . . . . Robots Hopped . | . . . . . . Potential Cave-ins . | . . . . . . Cave-ins Triggered . | . . . . . . Exploration Rate (%) 31 | 4 26 90 45 6 20 Regions Visited 5 Branch Regions 1 Pre-discovered Areas . | . . . . . . Known Exits Taken 1 | . . . . 1 . Unknown Exits Taken 4 | 1 1 1 1 . . Scrap Searched 1 | . . 1 . . . Spaces Dug . | . . . . . . Terrain Destroyed 10 | . . . 1 . 9 Melee . | . . . . . . Projectile 1 | . . . 1 . . AOE 9 | . . . . . 9 Terrain Rammed . | . . . . . . Walls Destroyed . | . . . . . . Machines Disabled . | . . . . . . Actions | -11 -10 -10 -9 -8 -8 --------- Run | Yrd Mat Min Mat Mat Gar Total 1463 | 64 186 362 568 66 217 Wait 167 | . 62 25 33 . 47 Move 1146 | 46 123 326 448 62 141 Hop . | . . . . . . Pick Up 15 | 2 . 3 8 2 . Fast Attach 17 | 7 1 . 6 1 2 Attach 4 | . . . 1 1 2 Detach 1 | . . . 1 . . Swap 12 | . . . 8 . 4 Drop 22 | 1 . . 17 . 4 Fire 76 | 8 . 8 44 . 16 Melee . | . . . . . . Ram . | . . . . . . Kick 2 | . . . 2 . . Crush . | . . . . . . Escape Stasis . | . . . . . . Rewire 1 | . . . . . 1 Trap . | . . . . . . Miscellaneous . | . . . . . . Route ------- -11/Scrapyard -10/Materials -10/Mines (discovered 2 exits: *Mat x2) -9/Materials (discovered 2 exits: *Mat / [*Min]) -8/Materials -8/Garrison History --------- Turn | Location | Event 15 | -11/Scrapyard | Discovered new exit (range 15) 90 | -11/Scrapyard | Entered Materials 274 | -10/Materials | Discovered new exit (range 16) 302 | -10/Materials | Entered Mines 305 | -10/Mines | Build established: Mutant 405 | -10/Mines | Found a damaged Exp. Sensor Array with a note attached 408 | -10/Mines | Found Prototype Device 423 | -10/Mines | Received a Rocket Launcher from a helpful Derelict 452 | -10/Mines | Discovered new exit (range 7) 717 | -10/Mines | Discovered new exit (range 6) 742 | -10/Mines | Entered Materials 742 | -9/Materials | Evolved 2 slots: Propulsion x2 865 | -9/Materials | Identified Exp. Sensor Array 1037 | -9/Materials | Discovered new exit (range 14) 1282 | -9/Materials | Build established: Scavenger-Mutant 1458 | -9/Materials | Discovered new exit (range 13) 1480 | -9/Materials | Entered another Materials area 1480 | -8/Materials | Evolved 2 slots: Utility x2 1549 | -8/Materials | Identified exit to Garrison 1559 | -8/Materials | Entered Garrison 1589 | -8/Garrison | Triggered checkpoint 1707 | -8/Garrison | Learned Materials security intel 1741 | -8/Garrison | Triggered checkpoint 1741 | -8/Garrison | Triggered checkpoint 1753 | -8/Garrison | Triggered checkpoint 1814 | -8/Garrison | Core integrity fell below 50% 1828 | -8/Garrison | Core integrity fell below 20% 1835 | -8/Garrison | Destroyed by G-47 Trooper with Particle Gun Last Messages --------------- 01750_ S-10 Pest destroyed. 01750_ Destroyed Flight Unit. 01750_ S-10 Pest destroyed. 01751_ Imp. Ion Engine destroyed. 01753_ S-10 Pest destroyed. 01753_ Garrison Door breached. 01753_ Beams of light sweep through the air. An alarm sounds. Garrison Door activated. 01764_ S-10 Pest destroyed. 01764_ Rocket Launcher destroyed. 01764_ Destroyed Rocket Launcher. 01772_ Aluminum Leg destroyed. 01774_ Ion Cannon destroyed. 01798_ Exp. Sensor Array destroyed. 01798_ S-10 Pest destroyed. 01800_ Aluminum Leg destroyed. 01801_ Imp. Aluminum Leg destroyed. 01808_ Imp. Ion Engine destroyed. 01818_ Aluminum Leg destroyed. 01832_ Critical hit (Burn: +37). Map ----- +----------------------------------------------------+ | ?????????????????????????????????????????????????? | | ?????????????????????????????????????????????????? | | ?????????????????????????????????????????????????? | | ???????????????????????????????????????###???????? | | ??????????????????????????????????????? #?????? | | ?????????????????????????????????###### ## ???? | | ?????????????????????????????????# ?? ## | | ????????????????????????????????? ? ?? | | ????????????????????????????????? ? ?? | | ?????????????????????????????????# #? #? #? | | ???????????????????????????????### ## ## ## | | ???????????????????????????????# | | ???????????????????????????????# = | | ???????????????????????????????# % ? | | ???????????????????????????????? * ???? | | ?????????????????????????????##### # %= #????#? | | ???????????????????????####### #%** ## ^## | | ???????????????????????# [% | | ???????????????????????# =%[[ | | ???????????????????????# ##### = ## | | ???????????????????????# #????########[!= ## ##? | | ???????????????????????#%s#???????????#=%[ #???#?? | | ???????????????????????#gg#???????????######?????? | | ???????????????????????# ###????????????????????? | | ???????????????????????# s ?????????????????????? | | ???????????????????????# @#??????????????????????? | | ???????????????????????# #??????????????????????? | | ???????????????????????# #########??????????????? | | ???????????????????????# ^ "#??????????????? | | ??????????????########## #####"T"#??????????????? | | ??????????????# #???#####??????????????? | | ??????????????# % #??????????????????????? | | ??????????????# #####!###??????????????????????? | | ??????????????# #???#=#????????????????????????? | | ??????????????#####???# #????????#######?????????? | | ??????????????????????#%#????????#"""""#?????????? | | ????????????????#######=########### ##?????????? | | ????????????????#" !==* #?????????? | | ????????????????#"T"######### "########?????????? | | ????????????????#####???????# "%#????????????????? | | ????????????????????????????#####????????????????? | | ?????????????????????????????????????????????????? | | ?????????????????????????????????????????????????? | | ?????????????????????????????????????????????????? | | ?????????????????????????????????????????????????? | | ?????????????????????????????????????????????????? | | ?????????????????????????????????????????????????? | | ?????????????????????????????????????????????????? | | ?????????????????????????????????????????????????? | | ?????????????????????????????????????????????????? | +----------------------------------------------------+ Best States ------------- Heat Dissipation 45 Energy Generation 12 Energy Capacity 265 Matter Stores 400 Matter Capacity 400 Sight Range 16 Robot Scan Range 20 Terrain Scan Density 10 Additional Mass Support 9 Evasion (%) 55 Item Schematics ----------------- None Robot Schematics ------------------ None Fabricated ------------ Nothing Repaired ---------- Nothing Alien Tech Used ----------------- None Achievements -------------- It's Just You Safety First Challenges ------------ None Game ------ Seed Symetrie Manual? 1 Play Time 00:32:20 Cumulative 3.7 hours Start 2025.05.22 @ 22:10:02 End 2025.05.26 @ 12:53:16 Sessions 5 Manual Loads 0 Difficulty Rogue Special Mode None Game No. 9 Rogue 6 Adventurer 3 Explorer 0 Win Type - Total 0 Types 0/0/0/0/0/0/0/0/0/0 Lore% 2 Gallery% 5 Achievement% 10 Wizard Run 0 Options --------- Layout 0 ASCII 0 Keyboard 0 Movement Numpad Keybinds 0 Fullscreen 2 Font 36/Smallcaps Map View 76x50 Zoom Use 60% Tactical HUD 1 Map Filters NONE Filters NONE Steam 1 RUN: b407fc6e-f8dd-482c-901e-97fbc4a227e0